bitfinex/quotes_SOLUSD_20240906
["timestamp","ask_amount","ask_price","bid_price","bid_amount"]
[1725617576570,27.7018,129.84,129.81,7.7035]
[1725617576571,20.0,129.84,129.81,7.7035]
[1725617576901,20.0,129.86,129.82,1.54046108]
[1725617577107,7.7009,129.86,129.82,9.24296108]
[1725617577276,20.0,129.85,129.82,9.24296108]
[1725617577479,21.34129736,129.89,129.82,9.24296108]
[1725617577784,21.34129736,129.89,129.82,7.7025]
[1725617578187,45.0,129.88,129.82,7.7025]
[1725617578390,7.7012,129.85,129.82,7.7025]
[1725617578577,20.0,129.84,129.81,7.7033]
[1725617578779,20.0,129.84,129.8,26.9637]
[1725617578987,27.7019,129.84,129.8,26.9637]
[1725617580373,20.0,129.84,129.81,7.7034]
[1725617581894,20.0,129.84,129.81,7.7033]
[1725617582084,27.7018,129.84,129.81,7.7033]
[1725617582602,27.702,129.84,129.8,26.9641]
[1725617584404,27.702,129.84,129.81,7.7034]
[1725617584903,27.702,129.84,129.81,9.24398653]
[1725617585497,20.0,129.84,129.81,9.24398653]
[1725617587988,20.0,129.84,129.81,1.54058653]
[1725617588206,20.0,129.87,129.81,1.54058653]
[1725617588406,45.0,129.86,129.81,1.54058653]
[1725617588612,20.0,129.85,129.81,1.54058653]
[1725617589106,27.7015,129.85,129.81,9.24378653]
[1725617590092,27.7015,129.85,129.82,7.7028]
[1725617590093,20.0,129.85,129.82,7.7028]
[1725617590288,7.7007,129.86,129.82,7.7028]
[1725617590503,20.0,129.85,129.82,19.2559]
[1725617590695,27.7002,129.87,129.83,1.54021882]
[1725617590891,27.7002,129.87,129.83,9.24231882]
[1725617591519,27.7002,129.87,129.83,7.7021]
[1725617594405,20.0,129.87,129.84,7.7017]
[1725617594607,20.0,129.87,129.85,7.701]
[1725617594815,20.0,129.88,129.85,7.701]
[1725617596114,20.0,129.88,129.85,26.9538]
[1725617596312,20.0,129.88,129.86,7.7005]
[1725617597924,20.0,129.88,129.85,26.9536]
[1725617598421,20.0,129.88,129.87,7.7]
[1725617598717,7.6979,129.91,129.87,7.7]
[1725617599919,20.0,129.9,129.87,7.7]
[1725617600104,20.0,129.9,129.88,7.6993]
[1725617600825,20.0,129.9,129.89,7.6988]
[1725617601126,29.6439,129.93,129.89,7.6988]
[1725617601308,7.697,129.92,129.89,7.6988]
[1725617602635,20.0,129.91,129.89,7.6988]
[1725617603009,20.0,129.91,129.9,7.6982]
[1725617603638,20.0,129.91,129.89,26.9447]
[1725617603838,20.0,129.92,129.89,26.9447]
[1725617604024,20.0,129.92,129.9,9.23754167]
[1725617604237,20.0,129.92,129.9,1.53954167]
[1725617604414,20.0,129.93,129.9,9.23744167]
[1725617604840,20.0,129.93,129.9,7.6979]
[1725617606324,20.0,129.93,129.89,26.9447]
[1725617607616,20.0,129.93,129.9,7.6982]
[1725617607919,20.0,129.93,129.9,8.12372176]
[1725617608424,20.0,129.93,129.9,7.6982]
[1725617610424,27.6965,129.93,129.89,26.9445]
[1725617614260,20.0,129.93,129.9,7.6981]
[1725617615159,7.6955,129.95,129.91,1.5393504]
[1725617615549,7.6949,129.96,129.92,7.6969]
[1725617615752,7.6949,129.96,129.93,1.53912895]
[1725617616344,7.6949,129.96,129.93,1.53913315]
[1725617616540,27.6952,129.95,129.93,1.53913315]
[1725617616761,27.6952,129.95,129.92,9.23603693]
[1725617617260,20.0,129.95,129.93,9.23533762]
[1725617617639,20.0,129.95,129.93,1.53913762]
[1725617618675,20.0,129.95,129.92,26.939]
[1725617622867,27.6954,129.95,129.92,26.939]
[1725617624473,20.0,129.95,129.92,26.939]
[1725617625581,20.0,129.95,129.93,7.6964]
[1725617625747,20.0,129.95,129.93,9.23550629]
[1725617626349,20.0,129.95,129.93,7.6964]
[1725617626655,20.0,129.95,129.92,26.9389]
[1725617629165,20.0,129.96,129.92,26.9389]
[1725617629371,7.6949,129.96,129.92,26.9389]
[1725617629582,20.0,129.95,129.92,26.9389]
[1725617631880,27.6954,129.95,129.92,19.2422]
[1725617638969,7.6962,129.94,129.9,7.698]
[1725617640488,7.6962,129.94,129.91,7.6975]
[1725617645990,20.0,129.95,129.91,7.6975]
[1725617646297,27.6949,129.96,129.92,7.6966]
[1725617648069,7.6954,129.95,129.92,7.6966]
[1725617648397,20.0,129.94,129.92,7.6966]
[1725617652496,20.0,129.94,129.91,26.9401]
[1725617652805,7.6956,129.95,129.91,26.9401]
[1725617653007,20.0,129.94,129.91,26.9401]
[1725617654585,20.0,129.94,129.88,38.4958]
[1725617654791,7.6942,129.97,129.93,7.6964]
[1725617654993,27.6947,129.96,129.93,7.6964]
[1725617655324,27.6947,129.96,129.93,9.23552602]
[1725617655691,27.6947,129.96,129.92,26.9378]
[1725617661522,7.6953,129.95,129.92,26.9378]
[1725617662198,20.0,129.96,129.92,26.9378]
[1725617662199,27.6949,129.96,129.92,26.9378]
[1725617662607,27.6949,129.96,129.93,7.6964]
[1725617667601,27.6949,129.96,129.92,26.9378]
[1725617668525,7.6955,129.95,129.92,19.2411]
[1725617673620,7.6955,129.95,129.92,26.9381]
[1725617676014,7.6958,129.94,129.92,19.2411]
[1725617676345,7.6956,129.95,129.92,26.9381]
[1725617676514,27.6948,129.96,129.93,9.03282149]
[1725617677724,27.6948,129.96,129.93,1.33652149]
[1725617678026,20.0,129.96,129.93,1.33652149]
[1725617678235,1.34025714,129.99,129.96,7.6943]
[1725617678540,7.6923,130.0,129.96,7.6943]
[1725617679534,7.6923,130.0,129.95,26.9332]
[1725617679933,20.0,129.99,129.95,26.9332]
[1725617686739,20.56617535,130.03,129.95,19.2381]
[1725617686943,7.6926,130.0,129.95,26.9329]
[1725617687164,20.0,129.99,129.95,26.9329]
[1725617687814,20.0,129.99,129.96,7.6946]
[1725617693427,7.6937,129.98,129.94,7.6957]
[1725617693632,7.6941,129.97,129.93,26.937]
[1725617693848,7.6952,129.95,129.92,15.5867]
[1725617694053,7.6948,129.96,129.92,15.5867]
[1725617694554,7.6948,129.96,129.91,26.941]
[1725617695266,20.0,129.95,129.91,26.941]
[1725617698323,27.6953,129.95,129.91,26.941]
[1725617698736,7.6959,129.94,129.91,19.2438]
[1725617699463,7.6959,129.94,129.9,7.6979]
[1725617699672,7.6974,129.92,129.88,7.6991]
[1725617712657,20.0,129.91,129.86,7.7002]
[1725617712848,21.3265,129.92,129.86,7.7002]
[1725617713049,7.6988,129.89,129.86,7.7002]
[1725617713443,7.6997,129.88,129.84,7.7014]
[1725617714449,20.0,129.91,129.83,26.9577]
[1725617714450,7.7001,129.87,129.83,26.9577]
[1725617715564,7.7006,129.86,129.83,26.9577]
[1725617715764,7.7006,129.86,129.82,7.7027]
[1725617720476,20.0,129.85,129.82,7.7027]
[1725617722888,21.483,129.87,129.84,7.7013]
[1725617723171,21.2472,129.97,129.85,1.5399532]
[1725617723377,7.6973,129.92,129.88,7.6992]
[1725617723674,7.6973,129.92,129.89,1.53953184]
[1725617723978,7.6971,129.92,129.89,1.53953184]
[1725617725878,7.6966,129.93,129.89,9.23823184]
[1725617726172,7.6962,129.94,129.9,7.6979]
[1725617726566,7.6962,129.94,129.89,26.9456]
[1725617727373,20.0,129.93,129.89,26.9456]
[1725617729094,20.0,129.93,129.9,9.23733343]
[1725617729395,20.0,129.93,129.9,1.53933343]
[1725617729567,22.58765518,129.97,129.9,1.53933343]
[1725617729568,1.34045518,129.97,129.92,14.53155676]
[1725617729886,22.1021,130.0,129.96,7.6946]
[1725617730184,7.6919,130.01,129.97,1.53861539]
[1725617730485,7.6915,130.02,129.98,7.6933]
[1725617730708,7.6915,130.02,129.99,1.53840798]
[1725617730876,29.7928,130.03,129.99,1.53840798]
[1725617731371,29.7928,130.03,129.98,7.6933]
[1725617731372,7.6913,130.02,129.98,7.6933]
[1725617731572,7.6913,130.02,129.97,26.9286]
[1725617731981,7.6925,130.0,129.95,7.695]
[1725617732909,7.693,129.99,129.94,26.9346]
[1725617733265,20.0,129.98,129.94,26.9346]
[1725617733884,7.6942,129.97,129.94,19.239]
[1725617734277,7.6942,129.97,129.94,19.82076945]
[1725617734480,7.6942,129.97,129.94,20.77789275]
[1725617734779,7.6942,129.97,129.94,19.239]
[1725617735293,7.6942,129.97,129.92,23.1882]
[1725617737798,27.6937,129.98,129.93,9.23524012]
[1725617738204,27.6937,129.98,129.92,23.1883]
[1725617738205,7.6944,129.97,129.92,23.1883]
[1725617738505,7.695,129.96,129.91,19.2431]
[1725617738670,27.695,129.96,129.91,19.2431]
[1725617739303,7.6953,129.95,129.91,19.2431]
[1725617739598,7.6968,129.93,129.88,26.9465]
[1725617739791,7.6968,129.93,129.89,1.53944222]
[1725617747895,7.6968,129.93,129.89,9.23814222]
[1725617748091,7.6968,129.93,129.9,1.5393498]
[1725617748295,7.6968,129.93,129.89,7.6987]
[1725617749214,7.6968,129.93,129.9,1.53938947]
[1725617750998,20.0,129.96,129.9,20.78448947]
[1725617751204,22.2403,129.97,129.92,7.697]
[1725617751408,29.9347,129.97,129.93,1.53895054]
[1725617751915,7.6947,129.96,129.93,1.53895054]
[1725617752513,7.6947,129.96,129.92,1.53905811]
[1725617754331,7.6947,129.96,129.92,9.23595811]
[1725617754611,7.6947,129.96,129.93,1.53899292]
[1725617756417,29.9345,129.97,129.93,1.53899292]
[1725617756598,20.0,129.96,129.93,1.53899292]
[1725617756988,20.0,129.96,129.92,26.9393]
[1725617758615,7.6931,129.99,129.95,7.6952]
[1725617758793,7.6929,129.99,129.96,1.53876805]
[1725617758996,7.6929,129.99,129.95,1.53876976]
[1725617759226,7.6935,129.98,129.95,1.53876976]
[1725617762125,22.9233,130.0,129.91,35.7731]
[1725617762418,7.6936,129.98,129.93,7.6959]
[1725617763020,7.6936,129.98,129.94,1.53881487]
[1725617769022,7.694,129.97,129.93,7.6959]
[1725617769227,7.694,129.97,129.93,7.6964]
[1725617769801,7.6957,129.95,129.9,36.9234638]
[1725617770025,22.9233,130.0,129.9,26.9431]
[1725617770315,7.6952,129.96,129.91,9.23674441]
[1725617770500,20.0,129.95,129.91,9.23674441]
[1725617772142,20.0,129.95,129.9,19.2453]
[1725617772303,7.6967,129.93,129.89,7.6987]
[1725617772728,7.6967,129.93,129.9,1.53940953]
[1725617775638,7.6967,129.93,129.89,9.23810948]
[1725617776515,7.6967,129.93,129.9,1.5394807]
[1725617777631,20.0,129.97,129.92,7.697]
[1725617777835,7.6949,129.96,129.93,1.53906197]
[1725617778140,20.0,129.95,129.93,1.53906197]
[1725617778727,20.0,129.95,129.92,1.539068]
[1725617778926,7.6952,129.95,129.92,1.539068]
[1725617782725,7.696,129.94,129.9,26.942]
[1725617783437,19.2368,129.96,129.88,42.2495]
[1725617783635,7.6972,129.92,129.89,6.41299308]
[1725617783840,7.6972,129.92,129.88,42.2495]
[1725617784139,20.0,129.95,129.89,15.65111062]
[1725617784140,7.6966,129.93,129.89,15.65111062]
[1725617784321,7.6966,129.93,129.89,9.23811151]
[1725617784523,7.697,129.92,129.9,1.53940876]
[1725617784836,7.6966,129.93,129.9,1.53940876]
[1725617785538,7.6962,129.94,129.9,9.23750876]
[1725617787145,20.0,129.95,129.92,7.6969]
[1725617787341,20.0,129.95,129.9,19.2453]
[1725617787549,20.0,129.97,129.91,1.53907627]
[1725617787747,1.34013464,129.99,129.91,1.53907627]
[1725617788038,7.6946,129.96,129.92,28.47817587]
[1725617788632,7.6946,129.96,129.92,26.9391]
[1725617790747,7.6952,129.95,129.92,26.9391]
[1725617793143,7.6948,129.96,129.93,1.4644021]
[1725617793642,7.6933,129.99,129.95,7.6948]
[1725617793837,20.0,129.98,129.96,1.53866432]
[1725617794239,27.6935,129.98,129.96,1.53866432]
[1725617795063,27.6935,129.98,129.95,7.6948]
[1725617796557,27.6935,129.98,129.96,1.53869045]
[1725617797651,27.6935,129.98,129.95,7.6948]
[1725617799060,20.0,129.98,129.95,7.6948]
[1725617799259,20.0,130.02,129.95,7.6948]
[1725617799557,7.6918,130.01,129.97,7.694]
[1725617799746,41.5048,130.03,129.98,9.23169498]
[1725617799747,7.6914,130.02,129.98,9.23169498]
[1725617799947,7.6914,130.02,129.99,1.53832063]
[1725617800346,7.6917,130.01,129.99,1.53832063]
[1725617800761,7.6917,130.01,129.97,7.6938]
[1725617800946,20.0,130.0,129.97,7.6938]
[1725617802837,22.277,130.03,129.99,7.6928]
[1725617803038,20.0,130.02,130.0,1.53822355]
[1725617803571,7.6901,130.04,130.0,9.23032355]
[1725617804458,7.6901,130.04,130.01,7.6916]
[1725617804660,7.6896,130.05,130.02,1.53799278]
[1725617804968,7.6899,130.04,130.02,1.53799278]
[1725617805167,7.6899,130.04,130.01,7.6916]
[1725617805541,20.0,130.03,130.01,7.6916]
[1725617806238,20.0,130.03,130.0,7.692]
[1725617807666,20.0,130.03,130.01,1.53802452]
[1725617808044,21.7762,130.07,130.02,19.2278]
[1725617808247,7.6891,130.06,130.03,1.53792588]
[1725617809169,7.6893,130.05,130.03,1.53792588]
[1725617810857,20.55512306,130.1,130.03,1.53792588]
[1725617811148,7.6881,130.08,130.04,26.9143]
[1725617811344,7.6881,130.08,130.05,1.53756748]
[1725617811680,22.4699,130.11,130.04,19.2246]
[1725617811851,22.4699,130.11,130.06,7.6886]
[1725617812252,7.687,130.09,130.05,7.6891]
[1725617812958,7.6878,130.08,130.05,0.79613494]
[1725617813278,7.6878,130.08,130.04,26.914]
[1725617816271,7.6873,130.09,130.05,52.6891]
[1725617816598,20.0,130.08,130.05,52.6891]
[1725617817080,27.6876,130.08,130.04,26.9142]
[1725617818756,7.6867,130.1,130.06,7.6886]
[1725617818954,7.6867,130.1,130.07,1.53737078]
[1725617819181,20.0,130.09,130.06,7.6886]
[1725617820378,27.687,130.09,130.05,7.6889]
[1725617821463,20.0,130.09,130.06,9.22579855]
[1725617822678,0.8381569,130.12,130.07,19.2194]
[1725617822880,0.8381569,130.12,130.09,7.6867]
[1725617823064,0.8381569,130.12,130.1,9.22316557]
[1725617823260,0.8381569,130.12,130.1,7.6863]
[1725617823778,0.8381569,130.12,130.11,1.53677853]
[1725617824084,0.8381569,130.12,130.08,79.4544]
[1725617824255,0.8381569,130.12,130.1,7.6863]
[1725617824462,0.8381569,130.12,130.11,1.53677576]
[1725617824803,0.8381569,130.12,130.1,7.6863]
[1725617824965,0.8381569,130.12,130.11,1.53682443]
[1725617826487,0.8381569,130.12,130.09,26.9026]
[1725617827183,0.8381569,130.12,130.1,1.53700103]
[1725617827378,0.8381569,130.12,130.11,1.5368357]
[1725617828270,0.8381569,130.12,130.1,7.6863]
[1725617828996,0.8381569,130.12,130.09,26.9024]
[1725617829387,0.8381569,130.12,130.1,1.53698614]
[1725617829693,0.8381569,130.12,130.11,1.53697505]
[1725617830693,0.8381569,130.12,130.11,9.22277505]
[1725617831590,0.8381569,130.12,130.11,7.6858]
[1725617831769,0.8381569,130.12,130.11,74.22211692]
[1725617832170,0.8381569,130.12,130.11,89.51531692]
[1725617832599,21.6527,130.22,130.18,7.6813]
[1725617832774,7.6796,130.22,130.19,1.53592402]
[1725617833094,7.6799,130.21,130.19,1.53592402]
[1725617833300,7.6799,130.21,130.17,26.8876]
[1725617834079,0.8381569,130.25,130.19,19.2015]
[1725617834282,0.8381569,130.25,130.21,19.199]
[1725617834681,8.5157569,130.25,130.21,26.8788]
[1725617835170,8.5157569,130.25,130.21,26.8784]
[1725617835382,8.5157569,130.25,130.21,19.199]
[1725617835578,27.6782,130.24,130.2,7.6803]
[1725617835799,20.0,130.24,130.2,7.6803]
[1725617836094,20.0,130.24,130.21,1.53562438]
[1725617836306,27.6784,130.24,130.21,1.53562438]
[1725617836491,7.6791,130.23,130.19,1.53562051]
[1725617836691,7.6791,130.23,130.19,45.0]
[1725617836999,7.6791,130.23,130.2,1.53569072]
[1725617837398,20.0,130.24,130.17,16.5304]
[1725617837597,7.6806,130.2,130.15,25.2519]
[1725617837780,7.6806,130.2,130.16,1.5359849]
[1725617838178,0.8381569,130.25,130.19,7.6807]
[1725617838375,7.6803,130.21,130.16,57.6827]
[1725617838596,7.6805,130.2,130.15,42.15815448]
[1725617838798,7.6806,130.2,130.16,45.0]
[1725617839173,7.679,130.23,130.17,19.2049]
[1725617839386,7.6801,130.21,130.16,95.0]
[1725617839619,7.6794,130.22,130.17,7.6818]
[1725617839785,7.6794,130.22,130.18,45.0]
[1725617840506,7.6801,130.21,130.19,0.4881856]
[1725617840717,7.6804,130.2,130.19,0.4881856]
[1725617841008,7.6804,130.2,130.16,26.8894]
[1725617841312,7.6804,130.2,130.17,45.0]
[1725617841699,7.68,130.21,130.17,45.0]
[1725617842101,7.68,130.21,130.17,52.6821]
[1725617842491,7.68,130.21,130.17,45.0]
[1725617842808,7.68,130.21,130.16,26.8891]
[1725617842809,7.6816,130.19,130.14,65.7533]
[1725617843029,7.6806,130.2,130.16,7.6826]
[1725617843191,7.6806,130.2,130.15,71.8912]
[1725617843887,7.6806,130.2,130.16,1.2536855]
[1725617844511,7.6806,130.2,130.16,8.9362855]
[1725617844708,7.6806,130.2,130.17,45.0]
[1725617844904,7.68,130.21,130.18,1.26573868]
[1725617845103,0.8381569,130.25,130.19,36.11385448]
[1725617845338,0.8381569,130.25,130.24,7.6781]
[1725617845572,0.8381569,130.25,130.22,19.1974]
[1725617845809,0.8381569,130.25,130.23,45.0]
[1725617846029,0.8381569,130.25,130.22,19.1974]
[1725617846319,0.8381569,130.25,130.2,15.1665]
[1725617846515,0.8381569,130.25,130.21,45.0]
[1725617846888,0.8381569,130.25,130.21,52.6795]
[1725617847335,0.8381569,130.25,130.22,7.6787]
[1725617847611,0.8381569,130.25,130.23,45.0]
[1725617847808,0.8381569,130.25,130.21,64.1984]
[1725617847986,0.8381569,130.25,130.22,7.6792]
[1725617848188,0.8381569,130.25,130.23,45.0]
[1725617848387,0.8381569,130.25,130.21,19.1984]
[1725617848608,0.8381569,130.25,130.22,45.0]
[1725617849195,0.8381569,130.25,130.22,52.6789]
[1725617849988,0.8381569,130.25,130.21,19.1984]
[1725617850389,8.5160569,130.25,130.21,19.1984]
[1725617850802,7.6781,130.24,130.19,7.6809]
[1725617850985,0.8381569,130.25,130.18,19.2039]
[1725617850986,7.6795,130.22,130.18,19.2039]
[1725617851425,7.6802,130.21,130.15,69.2082]
[1725617851718,7.6793,130.22,130.17,7.6822]
[1725617852014,7.6793,130.22,130.18,1.04348045]
[1725617852429,7.6787,130.23,130.18,8.72508045]
[1725617852892,7.6787,130.23,130.19,1.04340028]
[1725617853217,7.6793,130.22,130.19,1.04340028]
[1725617853514,7.6793,130.22,130.17,7.6817]
[1725617853717,7.6805,130.2,130.15,26.8915]
[1725617854492,7.6798,130.22,130.16,7.6825]
[1725617854791,7.6798,130.22,130.15,19.2082]
[1725617855197,20.0328569,130.25,130.15,19.2082]
[1725617855411,7.6804,130.2,130.15,26.8916]
[1725617855819,7.6799,130.21,130.16,7.6827]
[1725617856423,7.6806,130.2,130.15,26.8915]
[1725617857494,20.0,130.19,130.12,19.2123]
[1725617857694,7.6834,130.15,130.11,7.6853]
[1725617858016,7.6834,130.15,130.09,50.0]
[1725617858017,7.6829,130.16,130.12,7.6851]
[1725617858219,6.4973,130.18,130.12,7.6851]
[1725617858426,7.6829,130.16,130.11,7.6856]
[1725617858611,7.6829,130.16,130.12,1.53655769]
[1725617858814,7.6829,130.16,130.11,7.6856]
[1725617860024,7.6822,130.17,130.12,7.6851]
[1725617860220,7.6828,130.16,130.12,7.6851]
[1725617860800,7.6828,130.16,130.12,7.685]
[1725617861001,7.6836,130.15,130.11,19.2134]
[1725617861732,7.6842,130.14,130.09,7.6868]
[1725617861897,7.6846,130.13,130.09,7.6868]
[1725617862103,7.684,130.14,130.09,7.6868]
[1725617862617,7.6847,130.13,130.08,19.2182]
[1725617862819,7.6853,130.12,130.08,19.2182]
[1725617863726,15.6387,130.14,130.1,19.2154]
[1725617863906,23.3228,130.14,130.11,0.38441894]
[1725617864237,23.3228,130.14,130.11,1.53685378]
[1725617865232,23.3228,130.14,130.1,19.2154]
[1725617865402,7.6846,130.13,130.1,19.2154]
[1725617865606,23.3229,130.14,130.1,19.2154]
[1725617865815,7.685,130.13,130.08,7.6874]
[1725617866036,15.6387,130.14,130.07,19.2194]
[1725617866333,7.6868,130.1,130.06,14.10369862]
[1725617866506,7.6868,130.1,130.06,7.6883]
[1725617866701,7.6869,130.09,130.05,13.23600348]
[1725617866922,7.6869,130.09,130.05,7.6893]
[1725617867295,6.3397,130.12,130.04,19.2242]
[1725617867520,7.687,130.09,130.05,9.22658777]
[1725617867700,7.687,130.09,130.05,7.6892]
[1725617867898,7.6865,130.1,130.06,7.6887]
[1725617868931,27.6859,130.11,130.07,7.688]
[1725617870036,27.6859,130.11,130.06,26.91]
[1725617870629,7.6869,130.09,130.06,19.2215]
[1725617872619,7.6869,130.09,130.05,7.6892]
[1725617872620,7.6876,130.08,130.04,7.6897]
[1725617874515,7.6871,130.09,130.05,7.6892]
[1725617874716,7.6871,130.09,130.05,26.9124]
[1725617875932,7.6881,130.07,130.06,1.09583119]
[1725617876229,7.6896,130.05,130.01,7.6916]
[1725617876432,7.6896,130.05,130.02,21.94902882]
[1725617876610,7.6896,130.05,130.03,11.96864217]
[1725617876820,20.0,130.11,130.03,11.96864217]
[1725617876821,0.8381569,130.25,130.22,19.1982]
[1725617877143,0.74655702,130.39,130.28,50.0]
[1725617877431,0.74655702,130.39,130.31,7.6739]
[1725617877609,1.34319767,130.38,130.31,7.6739]
[1725617877811,1.34319767,130.38,130.29,19.1874]
[1725617877812,0.74655702,130.39,130.32,0.54273557]
[1725617878005,7.6699,130.38,130.31,7.6739]
[1725617878204,7.6699,130.38,130.32,0.54272713]
[1725617878401,7.6717,130.35,130.32,0.54272713]
[1725617878603,7.6717,130.35,130.28,50.0]
[1725617878917,7.6717,130.35,130.29,45.0]
[1725617879427,19.1682,130.43,130.3,0.59954409]
[1725617879633,7.6717,130.35,130.3,0.59954409]
[1725617880735,20.0,130.34,130.3,0.59954409]
[1725617881033,20.0,130.38,130.3,0.59954409]
[1725617881247,7.6717,130.35,130.3,0.59954409]
[1725617881409,20.0,130.34,130.3,0.59954409]
[1725617881603,7.6729,130.33,130.3,0.59954409]
[1725617882227,20.0,130.34,130.3,0.59954409]
[1725617882432,20.0,130.36,130.3,0.59954409]
[1725617883233,7.674,130.31,130.3,0.59954409]
[1725617883603,7.6731,130.33,130.3,0.59954409]
[1725617883806,27.6735,130.32,130.3,0.59954409]
[1725617884023,7.6735,130.32,130.3,0.59954409]
[1725617884738,7.674,130.31,130.3,0.59954409]
[1725617885034,7.6731,130.33,130.3,50.59954409]
[1725617885207,7.6731,130.33,130.31,45.0]
[1725617885405,7.6731,130.33,130.32,0.59945207]
[1725617887325,7.6734,130.32,130.28,50.0]
[1725617887508,7.674,130.31,130.29,1.43035004]
[1725617887840,7.674,130.31,130.3,1.43024424]
[1725617888607,7.6748,130.3,130.28,50.0]
[1725617888806,7.6748,130.3,130.29,1.43099945]
[1725617889351,7.6748,130.3,130.29,46.43099945]
[1725617891734,19.1804,130.35,130.3,50.0]
[1725617891913,7.6732,130.33,130.31,46.44521615]
[1725617892119,7.6734,130.32,130.31,46.44521615]
[1725617893036,7.6734,130.32,130.31,45.0]
[1725617894639,7.6734,130.32,130.31,46.4451908]
[1725617894853,38.3538,130.37,130.26,50.0]
[1725617895019,38.3538,130.37,130.22,71.5458]
[1725617895020,38.3639,130.34,130.22,50.0]
[1725617895213,7.678,130.25,130.22,50.0]
[1725617895643,7.678,130.25,130.21,7.6797]
[1725617895845,7.678,130.25,130.2,93.2565]
[1725617897148,7.6788,130.23,130.2,50.0]
[1725617897525,7.6783,130.24,130.2,50.0]
[1725617898036,7.6779,130.25,130.21,1.53538908]
[1725617898744,7.6779,130.25,130.21,46.53538908]
[1725617899553,7.6782,130.24,130.21,46.53538908]
[1725617899727,25.5578,130.3,130.22,50.0]
[1725617899942,7.6767,130.27,130.23,46.53492211]
[1725617900246,7.6773,130.26,130.23,45.0]
[1725617900624,7.6773,130.26,130.24,1.53510811]
[1725617900842,7.6763,130.27,130.24,1.53510811]
[1725617902541,7.6756,130.29,130.25,7.6771]
[1725617902746,19.1829,130.33,130.26,95.0]
[1725617902925,7.6748,130.3,130.26,102.6767]
[1725617903128,7.6748,130.3,130.27,1.04229277]
[1725617903435,19.1829,130.33,130.27,8.71829277]
[1725617903651,7.6735,130.32,130.28,45.0]
[1725617903949,7.6735,130.32,130.29,1.14013671]
[1725617904152,7.66739767,130.34,130.28,45.0]
[1725617904153,7.674,130.31,130.3,1.14061137]
[1725617904331,7.674,130.31,130.28,45.0]
[1725617904651,7.6746,130.3,130.28,45.0]
[1725617906560,7.6746,130.3,130.28,45.98997838]
[1725617907259,7.673,130.33,130.28,95.98997838]
[1725617907464,7.6724,130.34,130.3,57.6742]
[1725617907749,7.6724,130.34,130.31,46.53409999]
[1725617908159,23.07779767,130.38,130.31,65.71839999]
[1725617908658,7.6716,130.35,130.31,73.39189999]
[1725617909027,7.6716,130.35,130.31,71.8578]
[1725617912041,7.79789767,130.38,130.31,64.1843]
[1725617912230,7.671,130.36,130.32,57.6732]
[1725617912434,7.671,130.36,130.33,45.0]
[1725617914071,7.6708,130.37,130.34,50.0]
[1725617914240,7.6702,130.38,130.35,45.0]
[1725617914441,7.6705,130.37,130.35,45.0]
[1725617914670,7.6705,130.37,130.34,45.0]
[1725617915045,7.6705,130.37,130.34,52.6722]
[1725617915251,7.6694,130.39,130.35,7.6714]
[1725617915448,7.67,130.38,130.34,52.672]
[1725617915852,7.6704,130.37,130.33,26.8538]
[1725617916455,7.6726,130.34,130.31,7.674]
[1725617916983,7.6718,130.35,130.31,7.674]
[1725617917472,7.6713,130.36,130.32,9.11462522]
[1725617917771,7.6707,130.37,130.33,7.6727]
[1725617918576,7.671,130.36,130.32,76.8565]
[1725617918885,7.671,130.36,130.33,52.6728]
[1725617919069,7.67,130.38,130.33,46.15907362]